[Event "Titled Tuesday Blitz August 08 Early 2023"]
[White "Vyatkin, Dmitry"]
[Black "Dehtiarov, Roman"]
[WhiteFideId "4171900"]
[BlackFideId "14186640"]
[WhiteElo "2530"]
[BlackElo "2661"]
[Result "1-0"]
[Round "9"]
[TimeControl "180+1"]
[Date "2023.08.08"]
[WhiteClock "0:00:08"]
[BlackClock "0:00:04"]
[Board "55"]

1. d4 {[%clk 0:02:57]}  Nf6 {[%clk 0:02:59]} 2. c4 {[%clk 0:02:57]}  e6 {[%clk 0:02:59]} 3. g3 {[%clk 0:02:57]}  Bb4+ {[%clk 0:02:57]} 4. Bd2 {[%clk 0:02:57]}  a5 {[%clk 0:02:57]} 5. Bg2 {[%clk 0:02:55]}  d5 {[%clk 0:02:57]} 6. Nf3 {[%clk 0:02:53]}  O-O {[%clk 0:02:57]} 7. O-O {[%clk 0:02:46]}  dxc4 {[%clk 0:02:56]} 8. Bg5 {[%clk 0:02:30]}  Nbd7 {[%clk 0:02:52]} 9. e3 {[%clk 0:02:18]}  h6 {[%clk 0:02:47]} 10. Bxf6 {[%clk 0:02:16]}  Nxf6 {[%clk 0:02:48]} 11. Ne5 {[%clk 0:02:14]}  c6 {[%clk 0:02:44]} 12. Nxc4 {[%clk 0:02:10]}  Nd5 {[%clk 0:02:44]} 13. a3 {[%clk 0:01:59]}  Be7 {[%clk 0:02:42]} 14. Nbd2 {[%clk 0:01:58]}  Bd7 {[%clk 0:02:27]} 15. Rc1 {[%clk 0:01:52]}  Nb6 {[%clk 0:01:59]} 16. Qb3 {[%clk 0:01:47]}  Nxc4 {[%clk 0:01:56]} 17. Nxc4 {[%clk 0:01:48]}  Qc7 {[%clk 0:01:56]} 18. Rfd1 {[%clk 0:01:10]}  Rfd8 {[%clk 0:01:46]} 19. e4 {[%clk 0:00:57]}  Bf6 {[%clk 0:01:36]} 20. d5 {[%clk 0:00:56]}  exd5 {[%clk 0:01:33]} 21. exd5 {[%clk 0:00:56]}  b5 {[%clk 0:01:07]} 22. Ne3 {[%clk 0:00:46]}  c5 {[%clk 0:00:51]} 23. d6 {[%clk 0:00:46]}  Qa7 {[%clk 0:00:51]} 24. Bxa8 {[%clk 0:00:45]}  Rxa8 {[%clk 0:00:52]} 25. Nd5 {[%clk 0:00:42]}  Bd4 {[%clk 0:00:52]} 26. Rxd4 {[%clk 0:00:35]}  a4 {[%clk 0:00:37]} 27. Qd1 {[%clk 0:00:27]}  cxd4 {[%clk 0:00:32]} 28. Rc7 {[%clk 0:00:26]}  Qa5 {[%clk 0:00:33]} 29. Rxd7 {[%clk 0:00:26]}  Re8 {[%clk 0:00:33]} 30. Re7 {[%clk 0:00:22]}  Rd8 {[%clk 0:00:33]} 31. Qf3 {[%clk 0:00:21]}  Rf8 {[%clk 0:00:26]} 32. Qe4 {[%clk 0:00:18]}  Qa6 {[%clk 0:00:13]} 33. Re8 {[%clk 0:00:13]}  Rxe8 {[%clk 0:00:04]} 34. Qxe8+ {[%clk 0:00:12]}  Kh7 {[%clk 0:00:05]} 35. Ne7 {[%clk 0:00:07]}  h5 {[%clk 0:00:03]} 36. Qg8+ {[%clk 0:00:07]}  Kh6 {[%clk 0:00:04]} 37. Qh8+ {[%clk 0:00:08]}  Kg5 {[%clk 0:00:04]} 38. Qxg7# {[%clk 0:00:08]} 1-0


[Site "https://www.chess.com"]

[Event "Titled Tuesday Blitz August 08 Early 2023"]
[White "Weetik, Vjacheslav"]
[Black "Papayan, Oleg"]
[WhiteFideId "4153472"]
[BlackFideId "4193911"]
[WhiteElo "2660"]
[BlackElo "2522"]
[Result "1-0"]
[Round "9"]
[TimeControl "180+1"]
[Date "2023.08.08"]
[WhiteClock "0:00:09"]
[BlackClock "0:00:00"]
[Board "56"]

1. d4 {[%clk 0:02:59]}  d5 {[%clk 0:02:59]} 2. c4 {[%clk 0:02:59]}  dxc4 {[%clk 0:03:00]} 3. Nf3 {[%clk 0:02:59]}  Nf6 {[%clk 0:02:57]} 4. e3 {[%clk 0:02:59]}  a6 {[%clk 0:02:52]} 5. Bxc4 {[%clk 0:02:56]}  b5 {[%clk 0:02:52]} 6. Bd3 {[%clk 0:02:50]}  Bb7 {[%clk 0:02:51]} 7. O-O {[%clk 0:02:46]}  Nbd7 {[%clk 0:02:51]} 8. a4 {[%clk 0:02:41]}  b4 {[%clk 0:02:46]} 9. Qe2 {[%clk 0:02:33]}  c5 {[%clk 0:02:44]} 10. Rd1 {[%clk 0:02:32]}  e6 {[%clk 0:02:43]} 11. Nbd2 {[%clk 0:02:16]}  Be7 {[%clk 0:02:39]} 12. b3 {[%clk 0:01:59]}  O-O {[%clk 0:02:38]} 13. Bb2 {[%clk 0:01:59]}  Rc8 {[%clk 0:02:36]} 14. Bxa6 {[%clk 0:01:54]}  Qb6 {[%clk 0:02:35]} 15. Bxb7 {[%clk 0:01:50]}  Qxb7 {[%clk 0:02:36]} 16. Nc4 {[%clk 0:01:50]}  cxd4 {[%clk 0:02:34]} 17. Bxd4 {[%clk 0:01:33]}  Nd5 {[%clk 0:02:33]} 18. Rac1 {[%clk 0:01:29]}  Bf6 {[%clk 0:02:26]} 19. Nd6 {[%clk 0:01:21]}  Qb8 {[%clk 0:02:14]} 20. Nxc8 {[%clk 0:01:19]}  Rxc8 {[%clk 0:01:57]} 21. Qb5 {[%clk 0:01:16]}  Rd8 {[%clk 0:01:14]} 22. e4 {[%clk 0:01:00]}  Nf4 {[%clk 0:01:03]} 23. Bxf6 {[%clk 0:00:54]}  Nxf6 {[%clk 0:01:00]} 24. Rxd8+ {[%clk 0:00:43]}  Qxd8 {[%clk 0:00:59]} 25. Qa6 {[%clk 0:00:34]}  Ne8 {[%clk 0:00:54]} 26. g3 {[%clk 0:00:31]}  Ng6 {[%clk 0:00:17]} 27. Rc8 {[%clk 0:00:25]}  Qd7 {[%clk 0:00:17]} 28. Qc6 {[%clk 0:00:22]}  Qd1+ {[%clk 0:00:14]} 29. Kg2 {[%clk 0:00:22]}  h5 {[%clk 0:00:05]} 30. Qxe8+ {[%clk 0:00:16]}  Kh7 {[%clk 0:00:06]} 31. Ng5+ {[%clk 0:00:16]}  Kh6 {[%clk 0:00:07]} 32. Nxf7+ {[%clk 0:00:16]}  Kh7 {[%clk 0:00:07]} 33. Qxe6 {[%clk 0:00:12]}  Qd2 {[%clk 0:00:00]} 34. h4 {[%clk 0:00:09]} 1-0


[Site "https://www.chess.com"]

[Event "Titled Tuesday Blitz August 08 Early 2023"]
[White "Rodchenkov, Sergey D."]
[Black "Freitag, Manfred"]
[WhiteFideId "4168712"]
[BlackFideId "1602004"]
[WhiteElo "2496"]
[BlackElo "2642"]
[Result "0-1"]
[Round "9"]
[TimeControl "180+1"]
[Date "2023.08.08"]
[WhiteClock "0:00:20"]
[BlackClock "0:00:09"]
[Board "59"]

1. e4 {[%clk 0:03:00]}  c6 {[%clk 0:02:45]} 2. d4 {[%clk 0:03:00]}  d5 {[%clk 0:02:44]} 3. exd5 {[%clk 0:03:01]}  cxd5 {[%clk 0:02:45]} 4. Bd3 {[%clk 0:03:02]}  Nc6 {[%clk 0:02:44]} 5. c3 {[%clk 0:03:02]}  Qc7 {[%clk 0:02:44]} 6. h3 {[%clk 0:03:00]}  g6 {[%clk 0:02:43]} 7. Ne2 {[%clk 0:02:52]}  Bf5 {[%clk 0:02:40]} 8. Bxf5 {[%clk 0:02:49]}  gxf5 {[%clk 0:02:41]} 9. Bf4 {[%clk 0:02:48]}  Qd7 {[%clk 0:02:38]} 10. Nd2 {[%clk 0:02:47]}  Nf6 {[%clk 0:02:33]} 11. Nf3 {[%clk 0:02:47]}  Rg8 {[%clk 0:02:28]} 12. Ng3 {[%clk 0:02:44]}  Ne4 {[%clk 0:02:26]} 13. Ne5 {[%clk 0:02:24]}  Nxe5 {[%clk 0:02:23]} 14. Bxe5 {[%clk 0:02:25]}  e6 {[%clk 0:01:59]} 15. Nh5 {[%clk 0:02:16]}  Be7 {[%clk 0:01:55]} 16. f3 {[%clk 0:02:12]}  Nd6 {[%clk 0:01:53]} 17. O-O {[%clk 0:01:59]}  O-O-O {[%clk 0:01:43]} 18. Kh1 {[%clk 0:01:58]}  Nc4 {[%clk 0:01:41]} 19. f4 {[%clk 0:01:45]}  Rg6 {[%clk 0:01:36]} 20. Qe2 {[%clk 0:01:26]}  Rdg8 {[%clk 0:01:36]} 21. Rf2 {[%clk 0:01:25]}  a6 {[%clk 0:01:26]} 22. b3 {[%clk 0:01:25]}  Nd6 {[%clk 0:01:26]} 23. c4 {[%clk 0:01:25]}  Ne4 {[%clk 0:01:26]} 24. Rf3 {[%clk 0:01:18]}  f6 {[%clk 0:01:09]} 25. cxd5 {[%clk 0:00:53]}  fxe5 {[%clk 0:01:06]} 26. dxe6 {[%clk 0:00:46]}  Qxd4 {[%clk 0:00:58]} 27. Rd1 {[%clk 0:00:46]}  Qb6 {[%clk 0:00:49]} 28. g4 {[%clk 0:00:20]}  fxg4 {[%clk 0:00:38]} 29. Rff1 {[%clk 0:00:21]}  Rh6 {[%clk 0:00:26]} 30. Qxe4 {[%clk 0:00:21]}  Rxh5 {[%clk 0:00:23]} 31. Rd3 {[%clk 0:00:21]}  Qxe6 {[%clk 0:00:10]} 32. f5 {[%clk 0:00:19]}  Qc6 {[%clk 0:00:08]} 33. Qxc6+ {[%clk 0:00:19]}  bxc6 {[%clk 0:00:08]} 34. f6 {[%clk 0:00:20]}  Bc5 {[%clk 0:00:07]} 35. Rc3 {[%clk 0:00:19]}  e4 {[%clk 0:00:07]} 36. f7 {[%clk 0:00:16]}  Rf8 {[%clk 0:00:07]} 37. Kh2 {[%clk 0:00:15]}  Rxh3+ {[%clk 0:00:07]} 38. Rxh3 {[%clk 0:00:15]}  gxh3 {[%clk 0:00:08]} 39. Kxh3 {[%clk 0:00:16]}  Kd7 {[%clk 0:00:08]} 40. Rc1 {[%clk 0:00:17]}  Bd6 {[%clk 0:00:08]} 41. Rc4 {[%clk 0:00:18]}  Rxf7 {[%clk 0:00:08]} 42. Rxe4 {[%clk 0:00:19]}  Re7 {[%clk 0:00:09]} 43. Rh4 {[%clk 0:00:19]}  Re2 {[%clk 0:00:09]} 44. Rxh7+ {[%clk 0:00:18]}  Be7 {[%clk 0:00:10]} 45. Rh4 {[%clk 0:00:18]}  Rxa2 {[%clk 0:00:10]} 46. Rc4 {[%clk 0:00:19]}  Ra5 {[%clk 0:00:10]} 47. Rd4+ {[%clk 0:00:18]}  Bd6 {[%clk 0:00:10]} 48. Rf4 {[%clk 0:00:19]}  Rb5 {[%clk 0:00:10]} 49. Rg4 {[%clk 0:00:20]}  Rxb3+ {[%clk 0:00:09]} 50. Kg2 {[%clk 0:00:21]}  Rb4 {[%clk 0:00:09]} 51. Kf1 {[%clk 0:00:20]}  Rxg4 {[%clk 0:00:09]} 0-1


[Site "https://www.chess.com"]

[Event "Titled Tuesday Blitz August 08 Early 2023"]
[White "Ovchinnikov, Vsevolod"]
[Black "Wong, Zhenyong Jayden"]
[WhiteFideId "24176842"]
[BlackFideId "5821975"]
[WhiteElo "2638"]
[BlackElo "2483"]
[Result "1-0"]
[Round "9"]
[TimeControl "180+1"]
[Date "2023.08.08"]
[WhiteClock "0:01:02"]
[BlackClock "0:01:52"]
[Board "60"]

1. d4 {[%clk 0:03:00]}  g6 {[%clk 0:03:00]} 2. Nf3 {[%clk 0:03:00]}  Bg7 {[%clk 0:03:00]} 3. g3 {[%clk 0:03:01]}  b6 {[%clk 0:02:59]} 4. Bg2 {[%clk 0:03:02]}  Bb7 {[%clk 0:03:00]} 5. O-O {[%clk 0:03:02]}  Nf6 {[%clk 0:03:01]} 6. b3 {[%clk 0:03:03]}  O-O {[%clk 0:03:01]} 7. Bb2 {[%clk 0:03:04]}  c5 {[%clk 0:03:00]} 8. c4 {[%clk 0:02:59]}  cxd4 {[%clk 0:03:00]} 9. Nxd4 {[%clk 0:02:58]}  Bxg2 {[%clk 0:03:01]} 10. Kxg2 {[%clk 0:02:59]}  d5 {[%clk 0:03:01]} 11. Nd2 {[%clk 0:02:59]}  Re8 {[%clk 0:02:42]} 12. cxd5 {[%clk 0:02:39]}  Qxd5+ {[%clk 0:02:41]} 13. N4f3 {[%clk 0:02:34]}  Nc6 {[%clk 0:02:39]} 14. Nc4 {[%clk 0:02:26]}  Red8 {[%clk 0:02:37]} 15. Qxd5 {[%clk 0:02:26]}  Nxd5 {[%clk 0:02:38]} 16. Bxg7 {[%clk 0:02:27]}  Kxg7 {[%clk 0:02:39]} 17. Rfc1 {[%clk 0:02:24]}  Rac8 {[%clk 0:02:38]} 18. a3 {[%clk 0:02:20]}  b5 {[%clk 0:02:37]} 19. Ncd2 {[%clk 0:02:16]}  a6 {[%clk 0:02:24]} 20. Rc5 {[%clk 0:02:05]}  e6 {[%clk 0:02:16]} 21. Rac1 {[%clk 0:02:04]}  Nce7 {[%clk 0:02:16]} 22. Ne4 {[%clk 0:01:36]}  Rxc5 {[%clk 0:02:07]} 23. Nxc5 {[%clk 0:01:19]}  a5 {[%clk 0:02:06]} 24. Nb7 {[%clk 0:01:04]}  b4 {[%clk 0:01:52]} 25. Nxd8 {[%clk 0:01:02]} 1-0


[Site "https://www.chess.com"]

[Event "Titled Tuesday Blitz August 08 Early 2023"]
[White "Jumanov, Elbek"]
[Black "Domingo Nunez, Ruben"]
[WhiteFideId "14202905"]
[BlackFideId "22245570"]
[WhiteElo "2451"]
[BlackElo "2629"]
[Result "0-1"]
[Round "9"]
[TimeControl "180+1"]
[Date "2023.08.08"]
[WhiteClock "0:00:02"]
[BlackClock "0:00:15"]
[Board "64"]

1. c4 {[%clk 0:03:00]}  g6 {[%clk 0:02:59]} 2. Nf3 {[%clk 0:03:00]}  Bg7 {[%clk 0:02:58]} 3. g3 {[%clk 0:03:00]}  d6 {[%clk 0:02:58]} 4. Nc3 {[%clk 0:03:00]}  Nf6 {[%clk 0:02:59]} 5. Bg2 {[%clk 0:03:00]}  O-O {[%clk 0:03:00]} 6. O-O {[%clk 0:03:01]}  Nbd7 {[%clk 0:03:00]} 7. Rb1 {[%clk 0:03:00]}  c5 {[%clk 0:03:00]} 8. a3 {[%clk 0:02:55]}  Rb8 {[%clk 0:03:00]} 9. b4 {[%clk 0:02:54]}  b6 {[%clk 0:03:01]} 10. d3 {[%clk 0:02:51]}  Bb7 {[%clk 0:03:00]} 11. bxc5 {[%clk 0:02:51]}  dxc5 {[%clk 0:02:56]} 12. a4 {[%clk 0:02:50]}  Bc6 {[%clk 0:02:43]} 13. a5 {[%clk 0:02:48]}  bxa5 {[%clk 0:02:39]} 14. Ba3 {[%clk 0:02:45]}  Rb4 {[%clk 0:02:34]} 15. Bxb4 {[%clk 0:02:16]}  axb4 {[%clk 0:02:35]} 16. Na4 {[%clk 0:02:16]}  Qa5 {[%clk 0:02:32]} 17. Nb2 {[%clk 0:02:09]}  Ng4 {[%clk 0:01:53]} 18. Nd2 {[%clk 0:02:02]}  Bxg2 {[%clk 0:01:46]} 19. Kxg2 {[%clk 0:02:02]}  Qc7 {[%clk 0:01:46]} 20. Qa4 {[%clk 0:01:55]}  h5 {[%clk 0:01:40]} 21. Qa6 {[%clk 0:01:45]}  h4 {[%clk 0:01:35]} 22. Na4 {[%clk 0:01:40]}  Bd4 {[%clk 0:01:25]} 23. Ne4 {[%clk 0:01:33]}  Kg7 {[%clk 0:01:12]} 24. e3 {[%clk 0:01:30]}  Bxe3 {[%clk 0:00:44]} 25. fxe3 {[%clk 0:01:23]}  Nxe3+ {[%clk 0:00:44]} 26. Kg1 {[%clk 0:01:14]}  Nxf1 {[%clk 0:00:43]} 27. Rxf1 {[%clk 0:01:12]}  hxg3 {[%clk 0:00:43]} 28. Nxg3 {[%clk 0:01:07]}  Qe5 {[%clk 0:00:42]} 29. Qc6 {[%clk 0:01:02]}  Rd8 {[%clk 0:00:34]} 30. Qe4 {[%clk 0:01:01]}  Qd6 {[%clk 0:00:32]} 31. Qf4 {[%clk 0:00:52]}  Ne5 {[%clk 0:00:20]} 32. Nb2 {[%clk 0:00:38]}  f5 {[%clk 0:00:18]} 33. Re1 {[%clk 0:00:36]}  Ng4 {[%clk 0:00:11]} 34. Qxd6 {[%clk 0:00:35]}  exd6 {[%clk 0:00:12]} 35. Re7+ {[%clk 0:00:32]}  Kf6 {[%clk 0:00:13]} 36. Re1 {[%clk 0:00:26]}  Ne5 {[%clk 0:00:13]} 37. Kg2 {[%clk 0:00:23]}  Rh8 {[%clk 0:00:13]} 38. Rf1 {[%clk 0:00:22]}  Rh4 {[%clk 0:00:13]} 39. h3 {[%clk 0:00:22]}  Rd4 {[%clk 0:00:13]} 40. Ne4+ {[%clk 0:00:22]}  Kg7 {[%clk 0:00:13]} 41. Ng5 {[%clk 0:00:20]}  Kh6 {[%clk 0:00:13]} 42. Nf3 {[%clk 0:00:18]}  Nxf3 {[%clk 0:00:13]} 43. Kxf3 {[%clk 0:00:19]}  Kg5 {[%clk 0:00:12]} 44. Rg1+ {[%clk 0:00:19]}  Kf6 {[%clk 0:00:13]} 45. Re1 {[%clk 0:00:19]}  Rh4 {[%clk 0:00:13]} 46. Kg3 {[%clk 0:00:19]}  Rd4 {[%clk 0:00:13]} 47. Re8 {[%clk 0:00:19]}  d5 {[%clk 0:00:13]} 48. Rd8 {[%clk 0:00:18]}  dxc4 {[%clk 0:00:13]} 49. Rxd4 {[%clk 0:00:17]}  c3 {[%clk 0:00:14]} 50. Rd6+ {[%clk 0:00:15]}  Ke7 {[%clk 0:00:14]} 51. Rxg6 {[%clk 0:00:03]}  cxb2 {[%clk 0:00:14]} 52. Rg7+ {[%clk 0:00:04]}  Kf6 {[%clk 0:00:14]} 53. Rxa7 {[%clk 0:00:02]}  b1=Q {[%clk 0:00:15]} 0-1


[Site "https://www.chess.com"]

[Event "Titled Tuesday Blitz August 08 Early 2023"]
[White "Sharavdorj, Dashzegve"]
[Black "Escudero Donoso, Felipe"]
[WhiteFideId "4900340"]
[BlackFideId "3410595"]
[WhiteElo "2622"]
[BlackElo "2446"]
[Result "1-0"]
[Round "9"]
[TimeControl "180+1"]
[Date "2023.08.08"]
[WhiteClock "0:01:30"]
[BlackClock "0:00:03"]
[Board "66"]

1. d4 {[%clk 0:02:58]}  d5 {[%clk 0:02:59]} 2. c4 {[%clk 0:02:58]}  e6 {[%clk 0:02:59]} 3. Nf3 {[%clk 0:02:58]}  h6 {[%clk 0:02:58]} 4. Nc3 {[%clk 0:02:58]}  Nf6 {[%clk 0:02:57]} 5. Bf4 {[%clk 0:02:56]}  Bd6 {[%clk 0:02:57]} 6. Bg3 {[%clk 0:02:55]}  Bxg3 {[%clk 0:02:56]} 7. hxg3 {[%clk 0:02:54]}  Nbd7 {[%clk 0:02:54]} 8. e3 {[%clk 0:02:54]}  O-O {[%clk 0:02:54]} 9. Qc2 {[%clk 0:02:54]}  c6 {[%clk 0:02:53]} 10. Rd1 {[%clk 0:02:50]}  Qe7 {[%clk 0:02:52]} 11. Bd3 {[%clk 0:02:44]}  dxc4 {[%clk 0:02:44]} 12. Bxc4 {[%clk 0:02:44]}  e5 {[%clk 0:02:45]} 13. O-O {[%clk 0:02:43]}  exd4 {[%clk 0:02:35]} 14. exd4 {[%clk 0:02:43]}  Nb6 {[%clk 0:02:35]} 15. Rfe1 {[%clk 0:02:42]}  Qd6 {[%clk 0:02:34]} 16. Bb3 {[%clk 0:02:40]}  Nbd5 {[%clk 0:02:30]} 17. Ne5 {[%clk 0:02:39]}  Be6 {[%clk 0:02:28]} 18. Qd2 {[%clk 0:02:30]}  Rfe8 {[%clk 0:02:24]} 19. Bc2 {[%clk 0:02:28]}  Rad8 {[%clk 0:02:21]} 20. Bb1 {[%clk 0:02:28]}  a6 {[%clk 0:01:53]} 21. Qc2 {[%clk 0:02:27]}  Qc7 {[%clk 0:01:47]} 22. Nxd5 {[%clk 0:02:25]}  Bxd5 {[%clk 0:01:45]} 23. Ng4 {[%clk 0:02:24]}  Ne4 {[%clk 0:01:21]} 24. f3 {[%clk 0:02:19]}  f5 {[%clk 0:01:21]} 25. Ne3 {[%clk 0:02:10]}  Nxg3 {[%clk 0:01:17]} 26. Nxf5 {[%clk 0:02:06]}  Nh5 {[%clk 0:00:40]} 27. Ne3 {[%clk 0:01:47]}  Nf6 {[%clk 0:00:39]} 28. Ng4 {[%clk 0:01:46]}  Qf7 {[%clk 0:00:12]} 29. Ne5 {[%clk 0:01:43]}  Qh5 {[%clk 0:00:11]} 30. Qf2 {[%clk 0:01:41]}  Qg5 {[%clk 0:00:06]} 31. Re3 {[%clk 0:01:39]}  Nh5 {[%clk 0:00:04]} 32. Rde1 {[%clk 0:01:36]}  Rf8 {[%clk 0:00:03]} 33. Qc2 {[%clk 0:01:32]}  Nf4 {[%clk 0:00:03]} 34. Qh7# {[%clk 0:01:30]} 1-0


[Site "https://www.chess.com"]

[Event "Titled Tuesday Blitz August 08 Early 2023"]
[White "Thecourseoisildur"]
[Black "Lacasa Diaz, Jose Antonio"]
[BlackFideId "2203375"]
[WhiteElo "2603"]
[BlackElo "2406"]
[Result "1-0"]
[Round "9"]
[TimeControl "180+1"]
[Date "2023.08.08"]
[WhiteClock "0:01:51"]
[BlackClock "0:00:12"]
[Board "67"]

1. d4 {[%clk 0:02:57]}  d5 {[%clk 0:02:54]} 2. c4 {[%clk 0:02:57]}  e6 {[%clk 0:02:55]} 3. Nf3 {[%clk 0:02:58]}  c5 {[%clk 0:02:48]} 4. g3 {[%clk 0:02:51]}  cxd4 {[%clk 0:02:42]} 5. Nxd4 {[%clk 0:02:44]}  e5 {[%clk 0:02:42]} 6. Nf3 {[%clk 0:02:39]}  d4 {[%clk 0:02:41]} 7. Bg2 {[%clk 0:02:39]}  Nc6 {[%clk 0:02:41]} 8. O-O {[%clk 0:02:38]}  Nf6 {[%clk 0:02:31]} 9. e3 {[%clk 0:02:35]}  d3 {[%clk 0:02:22]} 10. e4 {[%clk 0:02:34]}  Bg4 {[%clk 0:02:14]} 11. Nc3 {[%clk 0:02:21]}  Bc5 {[%clk 0:01:38]} 12. Bg5 {[%clk 0:02:16]}  Qd7 {[%clk 0:01:04]} 13. Bxf6 {[%clk 0:02:14]}  gxf6 {[%clk 0:01:04]} 14. Nd5 {[%clk 0:02:14]}  O-O-O {[%clk 0:00:53]} 15. Qxd3 {[%clk 0:02:13]}  Bh3 {[%clk 0:00:31]} 16. Rfd1 {[%clk 0:02:04]}  Bxg2 {[%clk 0:00:30]} 17. Kxg2 {[%clk 0:02:05]}  Qe6 {[%clk 0:00:25]} 18. Qb3 {[%clk 0:02:02]}  f5 {[%clk 0:00:21]} 19. exf5 {[%clk 0:02:02]}  Qxf5 {[%clk 0:00:20]} 20. Qb5 {[%clk 0:01:54]}  Bxf2 {[%clk 0:00:18]} 21. Qxc6+ {[%clk 0:01:51]}  bxc6 {[%clk 0:00:18]} 22. Ne7+ {[%clk 0:01:51]}  Kc7 {[%clk 0:00:12]} 23. Nxf5 {[%clk 0:01:51]} 1-0


[Site "https://www.chess.com"]

[Event "Titled Tuesday Blitz August 08 Early 2023"]
[White "Liyanage, Ranindu Dilshan"]
[Black "GaiozNigalidze"]
[WhiteFideId "9915834"]
[WhiteElo "2599"]
[BlackElo "2387"]
[Result "1-0"]
[Round "9"]
[TimeControl "180+1"]
[Date "2023.08.08"]
[WhiteClock "0:00:09"]
[BlackClock "0:00:06"]
[Board "68"]

1. d4 {[%clk 0:02:59]}  Nf6 {[%clk 0:02:56]} 2. Bf4 {[%clk 0:03:00]}  d5 {[%clk 0:02:55]} 3. e3 {[%clk 0:02:58]}  e6 {[%clk 0:02:55]} 4. Nf3 {[%clk 0:02:56]}  c5 {[%clk 0:02:55]} 5. Nbd2 {[%clk 0:02:53]}  Nc6 {[%clk 0:02:54]} 6. c3 {[%clk 0:02:52]}  cxd4 {[%clk 0:02:55]} 7. exd4 {[%clk 0:02:51]}  Nh5 {[%clk 0:02:54]} 8. Be3 {[%clk 0:02:45]}  Bd6 {[%clk 0:02:54]} 9. Ne5 {[%clk 0:02:46]}  Nf6 {[%clk 0:02:54]} 10. Nd3 {[%clk 0:02:43]}  Bd7 {[%clk 0:02:47]} 11. g3 {[%clk 0:02:39]}  Qb6 {[%clk 0:02:41]} 12. Bg2 {[%clk 0:02:22]}  h6 {[%clk 0:02:17]} 13. O-O {[%clk 0:02:15]}  Qc7 {[%clk 0:02:17]} 14. Rc1 {[%clk 0:02:11]}  Ne7 {[%clk 0:02:03]} 15. c4 {[%clk 0:02:08]}  dxc4 {[%clk 0:02:03]} 16. Nxc4 {[%clk 0:02:07]}  Bc6 {[%clk 0:02:03]} 17. Nce5 {[%clk 0:01:47]}  O-O {[%clk 0:01:54]} 18. Bxc6 {[%clk 0:01:31]}  bxc6 {[%clk 0:01:31]} 19. Qf3 {[%clk 0:01:28]}  Bxe5 {[%clk 0:01:25]} 20. Nxe5 {[%clk 0:01:12]}  Ned5 {[%clk 0:01:26]} 21. Rxc6 {[%clk 0:01:05]}  Qb7 {[%clk 0:01:26]} 22. b3 {[%clk 0:00:59]}  a5 {[%clk 0:01:07]} 23. Rc4 {[%clk 0:00:48]}  Qe7 {[%clk 0:01:01]} 24. Rfc1 {[%clk 0:00:46]}  Qa3 {[%clk 0:00:59]} 25. R4c2 {[%clk 0:00:21]}  Nb4 {[%clk 0:00:52]} 26. Nc4 {[%clk 0:00:21]}  Nxc2 {[%clk 0:00:50]} 27. Nxa3 {[%clk 0:00:21]}  Nxa3 {[%clk 0:00:50]} 28. Qe2 {[%clk 0:00:21]}  Nd5 {[%clk 0:00:44]} 29. Rc5 {[%clk 0:00:21]}  Rfc8 {[%clk 0:00:36]} 30. Bc1 {[%clk 0:00:14]}  Nb1 {[%clk 0:00:32]} 31. Bb2 {[%clk 0:00:09]}  Nbc3 {[%clk 0:00:19]} 32. Qc4 {[%clk 0:00:10]}  Rxc5 {[%clk 0:00:16]} 33. dxc5 {[%clk 0:00:11]}  Nxa2 {[%clk 0:00:13]} 34. Qg4 {[%clk 0:00:10]}  g5 {[%clk 0:00:09]} 35. Qd4 {[%clk 0:00:09]}  f6 {[%clk 0:00:08]} 36. Qe4 {[%clk 0:00:09]}  Kf7 {[%clk 0:00:06]} 37. Qh7+ {[%clk 0:00:09]}  Ke8 {[%clk 0:00:07]} 38. c6 {[%clk 0:00:08]}  Ne7 {[%clk 0:00:06]} 39. Qh8+ {[%clk 0:00:08]}  Kf7 {[%clk 0:00:06]} 40. Qxa8 {[%clk 0:00:09]}  Nxc6 {[%clk 0:00:06]} 41. Qxc6 {[%clk 0:00:09]} 1-0


[Site "https://www.chess.com"]

[Event "Titled Tuesday Blitz August 08 Early 2023"]
[White "jumpingknight20"]
[Black "Santos Flores, Alberto"]
[BlackFideId "3601234"]
[WhiteElo "2689"]
[BlackElo "2564"]
[Result "1-0"]
[Round "9"]
[TimeControl "180+1"]
[Date "2023.08.08"]
[WhiteClock "0:00:54"]
[BlackClock "0:00:59"]
[Board "72"]

1. e4 {[%clk 0:03:00]}  e6 {[%clk 0:03:00]} 2. d4 {[%clk 0:03:00]}  d5 {[%clk 0:03:00]} 3. Nd2 {[%clk 0:03:01]}  c5 {[%clk 0:03:00]} 4. exd5 {[%clk 0:03:01]}  Qxd5 {[%clk 0:03:01]} 5. Ngf3 {[%clk 0:03:01]}  cxd4 {[%clk 0:03:01]} 6. Bc4 {[%clk 0:03:02]}  Qd6 {[%clk 0:03:01]} 7. O-O {[%clk 0:03:01]}  Nf6 {[%clk 0:03:02]} 8. Nb3 {[%clk 0:03:02]}  Nc6 {[%clk 0:03:02]} 9. Nbxd4 {[%clk 0:03:02]}  Nxd4 {[%clk 0:03:03]} 10. Nxd4 {[%clk 0:03:03]}  a6 {[%clk 0:03:03]} 11. c3 {[%clk 0:03:00]}  Qc7 {[%clk 0:03:02]} 12. Bb3 {[%clk 0:02:59]}  Bd7 {[%clk 0:03:02]} 13. Re1 {[%clk 0:02:59]}  O-O-O {[%clk 0:03:02]} 14. Qf3 {[%clk 0:02:45]}  Bd6 {[%clk 0:03:02]} 15. h3 {[%clk 0:02:45]}  Kb8 {[%clk 0:03:01]} 16. Bg5 {[%clk 0:02:04]}  Qc5 {[%clk 0:02:23]} 17. Be3 {[%clk 0:02:01]}  Qe5 {[%clk 0:02:23]} 18. g3 {[%clk 0:01:54]}  Qe4 {[%clk 0:02:23]} 19. Bf4 {[%clk 0:01:47]}  Qxf3 {[%clk 0:01:38]} 20. Bxd6+ {[%clk 0:01:47]}  Kc8 {[%clk 0:01:38]} 21. Nxf3 {[%clk 0:01:48]}  Bc6 {[%clk 0:01:39]} 22. Ne5 {[%clk 0:01:45]}  Rxd6 {[%clk 0:01:36]} 23. Nxf7 {[%clk 0:01:46]}  Rhd8 {[%clk 0:01:37]} 24. Nxd8 {[%clk 0:01:38]}  Kxd8 {[%clk 0:01:36]} 25. Rxe6 {[%clk 0:01:34]}  Rd2 {[%clk 0:01:33]} 26. Rd1 {[%clk 0:01:34]}  Rxd1+ {[%clk 0:01:34]} 27. Bxd1 {[%clk 0:01:35]}  Bd5 {[%clk 0:01:34]} 28. Re2 {[%clk 0:01:31]}  Bxa2 {[%clk 0:01:34]} 29. b3 {[%clk 0:01:27]}  Bb1 {[%clk 0:01:33]} 30. Bc2 {[%clk 0:01:27]}  Bxc2 {[%clk 0:01:30]} 31. Rxc2 {[%clk 0:01:28]}  Ke7 {[%clk 0:01:31]} 32. Re2+ {[%clk 0:01:23]}  Kd6 {[%clk 0:01:31]} 33. Kf1 {[%clk 0:01:24]}  b5 {[%clk 0:01:30]} 34. Ke1 {[%clk 0:01:24]}  a5 {[%clk 0:01:28]} 35. Kd2 {[%clk 0:01:24]}  Kc5 {[%clk 0:01:28]} 36. Kd3 {[%clk 0:01:21]}  Nd5 {[%clk 0:01:25]} 37. Re5 {[%clk 0:01:21]}  Kd6 {[%clk 0:01:25]} 38. Rg5 {[%clk 0:01:19]}  g6 {[%clk 0:01:24]} 39. c4 {[%clk 0:01:19]}  bxc4+ {[%clk 0:01:21]} 40. bxc4 {[%clk 0:01:16]}  Nb4+ {[%clk 0:01:21]} 41. Kc3 {[%clk 0:01:17]}  Nc6 {[%clk 0:01:21]} 42. Rd5+ {[%clk 0:01:13]}  Kc7 {[%clk 0:01:21]} 43. Kb3 {[%clk 0:01:10]}  Kb6 {[%clk 0:01:16]} 44. Ka4 {[%clk 0:01:11]}  Ka6 {[%clk 0:01:16]} 45. c5 {[%clk 0:01:09]}  Nb4 {[%clk 0:01:06]} 46. Rd6+ {[%clk 0:01:08]}  Kb7 {[%clk 0:01:07]} 47. Kxa5 {[%clk 0:01:03]}  Nc2 {[%clk 0:01:07]} 48. Kb5 {[%clk 0:00:57]}  Na3+ {[%clk 0:01:06]} 49. Kb4 {[%clk 0:00:56]}  Nc2+ {[%clk 0:01:07]} 50. Kb3 {[%clk 0:00:56]}  Ne1 {[%clk 0:01:06]} 51. Kc4 {[%clk 0:00:56]}  Nf3 {[%clk 0:01:05]} 52. Kd5 {[%clk 0:00:55]}  Kc7 {[%clk 0:01:03]} 53. Rf6 {[%clk 0:00:55]}  Ng5 {[%clk 0:01:03]} 54. h4 {[%clk 0:00:56]}  Nh3 {[%clk 0:01:02]} 55. Rf7+ {[%clk 0:00:56]}  Kc8 {[%clk 0:00:59]} 56. Kc6 {[%clk 0:00:54]} 1-0


[Site "https://www.chess.com"]